bitfinex/quotes_ETHUSD_20250414
["timestamp","ask_amount","ask_price","bid_price","bid_amount"]
[1744630965066,7.167,1671.6,1671.4,11.96585]
[1744630965271,7.167,1671.6,1671.5,5.98265]
[1744630966443,7.167,1671.6,1671.4,5.98283]
[1744630966767,7.167,1671.6,1671.5,5.98265]
[1744630966981,9.76699,1671.9,1671.5,5.98265]
[1744630966982,0.7857,1671.9,1671.5,1.196548]
[1744630967275,0.7857,1671.9,1671.6,11.96421]
[1744630967465,6.76692,1671.9,1671.6,5.98205]
[1744630967761,0.7857,1671.9,1671.6,5.98205]
[1744630967963,6.76695,1671.9,1671.6,5.98205]
[1744630968338,12.74837,1671.9,1671.6,5.98205]
[1744630968534,12.74837,1671.9,1671.5,11.96512]
[1744630968739,5.98158,1671.8,1671.6,0.99336195]
[1744630970138,12.74849,1671.9,1671.6,0.99336195]
[1744630970472,6.76695,1671.9,1671.6,6.97551195]
[1744630970772,6.76695,1671.9,1671.6,12.95770195]
[1744630970954,0.7857,1671.9,1671.6,12.95769195]
[1744630971173,46.648,1672.0,1671.7,7.27767919]
[1744630971364,5.98132,1671.9,1671.6,6.80135]
[1744630971564,52.62905,1672.0,1671.6,12.7835]
[1744630971773,52.62901,1672.0,1671.6,12.7835]
[1744630972174,58.61011,1672.0,1671.6,12.7835]
[1744630973055,11.96211,1672.0,1671.6,12.7835]
[1744630973278,0.05971062,1671.9,1671.4,6.77465]
[1744630973443,5.98167,1671.8,1671.5,5.98264]
[1744630973988,5.98202,1671.7,1671.4,6.77465]
[1744630974192,11.96411,1671.7,1671.4,6.77465]
[1744630974363,5.98202,1671.7,1671.4,6.77465]
[1744630974755,5.98202,1671.7,1671.4,12.75753]
[1744630974959,5.98193,1671.7,1671.4,8.050403]
[1744630975161,5.98193,1671.7,1671.4,6.77465]
[1744630975691,5.98232,1671.6,1671.4,0.7918]
[1744630976369,0.8194,1671.8,1671.4,6.7747]
[1744630976574,5.98203,1671.7,1671.4,6.77468]
[1744630977074,11.9641,1671.7,1671.4,6.77468]
[1744630977274,6.80108,1671.8,1671.4,6.77468]
[1744630977479,11.96422,1671.7,1671.4,6.77468]
[1744630977679,1.499508,1671.8,1671.5,5.98235]
[1744630977680,6.80107,1671.8,1671.5,5.98235]
[1744630977997,12.78282,1671.8,1671.5,5.98235]
[1744630978198,6.80107,1671.8,1671.5,5.98235]
[1744630978497,12.78287,1671.8,1671.5,5.98235]
[1744630978792,12.78281,1671.8,1671.5,5.98235]
[1744630978981,6.80107,1671.8,1671.5,11.96489]
[1744630979187,11.96277,1671.9,1671.6,5.98219]
[1744630979388,12.02248062,1671.9,1671.6,5.98219]
[1744630979706,12.02248062,1671.9,1671.5,13.240789]
[1744630979867,6.04097062,1671.9,1671.6,5.98217]
[1744630980067,13.42367768,1671.9,1671.6,5.98217]
[1744630980289,13.36396706,1671.9,1671.5,11.96512]
[1744630980495,5.98164,1671.8,1671.5,11.9651]
[1744630980798,5.98164,1671.8,1671.5,5.98254]
[1744630981001,0.8148,1672.0,1671.6,2.98547885]
[1744630981303,6.79577,1672.0,1671.7,5.98193]
[1744630981603,5.98123,1671.9,1671.6,15.84675173]
[1744630981787,6.79577,1672.0,1671.7,5.98191]
[1744630982300,6.79577,1672.0,1671.7,5.9818]
[1744630982700,12.77683,1672.0,1671.6,6.87904288]
[1744630982917,12.77683,1672.0,1671.6,12.86127288]
[1744630983207,6.79577,1672.0,1671.7,13.24985729]
[1744630983413,12.77677,1672.0,1671.7,7.26794729]
[1744630983916,12.77677,1672.0,1671.7,5.98182]
[1744630984413,6.79577,1672.0,1671.7,5.98182]
[1744630984914,12.77678,1672.0,1671.7,5.98182]
[1744630985115,6.79577,1672.0,1671.7,5.98182]
[1744630985291,6.79577,1672.0,1671.7,11.96364]
[1744630985498,6.79577,1672.0,1671.7,7.47671189]
[1744630985692,6.79577,1672.0,1671.7,7.47677189]
[1744630985898,6.79577,1672.0,1671.7,13.45859189]
[1744630986287,0.8148,1672.0,1671.7,7.47673189]
[1744630986598,12.77685,1672.0,1671.7,7.47673189]
[1744630987019,6.79577,1672.0,1671.7,7.47673189]
[1744630987223,0.8148,1672.0,1671.7,13.45853189]
[1744630987398,6.79566,1672.0,1671.7,13.45854189]
[1744630987737,6.79566,1672.0,1671.7,7.47671189]
[1744630987896,6.79566,1672.0,1671.7,13.45853189]
[1744630988107,6.79566,1672.0,1671.7,14.28380189]
[1744630988309,0.8148,1672.0,1671.7,14.28380189]
[1744630988521,0.8148,1672.0,1671.7,2.32021189]
[1744630988724,3.94689706,1672.8,1672.0,3.55]
[1744630988889,3.94689706,1672.8,1672.7,8.96382885]
[1744630989085,3.94689706,1672.8,1672.7,9.75162885]
[1744630990214,3.94689706,1672.8,1672.7,10.30162885]
[1744630990723,3.94689706,1672.8,1672.7,9.75162885]
[1744630993803,0.05971062,1673.3,1672.7,9.75162885]
[1744630993804,0.05971062,1673.3,1673.0,5.97708]
[1744630994001,12.80603,1673.4,1673.0,8.96255885]
[1744630994002,6.82998,1673.4,1673.0,8.96255885]
[1744630994213,0.05,1673.4,1673.2,5.97633]
[1744630994540,0.05,1673.4,1673.1,6.776]
[1744630994860,6.02587,1673.4,1673.1,6.776]
[1744630995703,0.05,1673.4,1673.1,12.75278]
[1744630995893,0.05,1673.4,1673.2,6.03617959]
[1744630996123,0.05,1673.4,1673.3,5.97621]
[1744630997196,0.05,1673.4,1673.2,3.66901681]
[1744630997514,0.05,1673.4,1673.1,12.7529]
[1744630997837,0.05,1673.4,1673.2,5.97634]
[1744630997992,0.05,1673.4,1673.1,6.77606]
[1744630998197,0.05,1673.4,1673.2,5.97655]
[1744630998437,0.05,1673.4,1673.1,12.75282]
[1744630998640,0.05,1673.4,1673.1,14.32664988]
[1744630999020,0.05,1673.4,1673.1,8.34978988]
[1744630999624,6.02588,1673.4,1673.1,2.37302988]
[1744630999833,0.05971062,1673.3,1672.7,9.78631885]
[1744630999993,0.05971062,1673.3,1672.5,6.80143]
[1744630999994,5.97779,1672.9,1672.5,6.80143]
[1744631000197,5.97815,1672.8,1672.5,0.8225]
[1744631000423,6.80381,1672.9,1672.6,5.9787]
[1744631000623,12.84138062,1672.9,1672.5,0.8225]
[1744631000928,12.78167,1672.9,1672.5,7.18216788]
[1744631001133,5.97806,1672.8,1672.5,7.18216788]
[1744631001325,5.97845,1672.7,1672.3,9.76724885]
[1744631001625,5.97813,1672.8,1672.4,8.96473885]
[1744631001828,0.8261,1672.9,1672.5,5.97904]
[1744631001829,0.88581062,1672.9,1672.5,5.97904]
[1744631002130,0.8261,1672.9,1672.5,0.89645189]
[1744631002327,5.97833,1672.8,1672.4,8.96485885]
[1744631002543,5.9785,1672.7,1672.4,14.94413885]
[1744631003336,5.9785,1672.7,1672.4,8.96475885]
[1744631003741,5.97872,1672.6,1672.3,6.78181]
[1744631004107,12.01666062,1672.7,1672.3,12.8213101]
[1744631004309,6.03772062,1672.8,1672.5,5.97905]
[1744631004514,5.97846,1672.7,1672.4,5.97926]
[1744631004718,11.957,1672.7,1672.4,5.97926]
[1744631004926,5.97877,1672.6,1672.3,8.3624289]
[1744631005433,5.9792,1672.5,1672.3,1.5806789]
[1744631005602,0.87521062,1672.6,1672.2,2.98547885]
[1744631005808,0.8155,1672.6,1672.4,5.97924]
[1744631006026,6.79357,1672.8,1672.5,5.97907]
[1744631006225,5.97838,1672.7,1672.4,5.97924]
[1744631006408,11.95697,1672.7,1672.4,5.97924]
[1744631006608,5.97838,1672.7,1672.4,5.97924]
[1744631006814,5.97838,1672.7,1672.4,11.95856]
[1744631007139,5.97838,1672.7,1672.4,6.78564]
[1744631007434,12.7718,1672.8,1672.4,12.76493]
[1744631007741,5.97837,1672.7,1672.4,6.78564]
[1744631007915,2.09268,1672.8,1672.3,5.97971]
[1744631007916,5.97898,1672.6,1672.3,5.97971]
[1744631008104,8.13051062,1672.8,1672.2,8.96546885]
[1744631008442,5.97972,1672.4,1672.0,5.98077]
[1744631008610,5.97992,1672.3,1672.0,5.98072]
[1744631009034,5.98026,1672.2,1671.9,0.792]
[1744631009233,6.04034062,1672.1,1671.7,12.75561]
[1744631009534,6.80172,1672.2,1671.8,5.98156]
[1744631009739,0.8215,1672.2,1671.9,5.98105]
[1744631009903,6.86151062,1672.2,1671.8,12.640356]
[1744631010104,6.86151062,1672.2,1671.7,5.98178]
[1744631010105,5.98051,1672.1,1671.7,5.98178]
[1744631010312,11.96119,1672.1,1671.7,5.98178]
[1744631010535,5.98097,1672.0,1671.6,14.95005885]
[1744631010737,5.98125,1671.9,1671.5,6.76041]
[1744631011039,5.98125,1671.9,1671.5,1.75248889]
[1744631011040,5.98171,1671.8,1671.5,1.75248889]
[1744631011613,5.98171,1671.8,1671.5,0.97458889]
[1744631011614,6.04142062,1671.8,1671.5,0.97458889]
[1744631012149,6.04142062,1671.8,1671.4,5.98282]
[1744631012326,12.02328062,1671.8,1671.4,5.98282]
[1744631012534,6.04142062,1671.8,1671.4,11.96568]
[1744631012728,12.71358,1671.9,1671.5,5.98242]
[1744631012910,6.04129062,1671.8,1671.5,5.98242]
[1744631013741,0.7509,1671.9,1671.6,5.98228]
[1744631013913,0.7509,1671.9,1671.7,5.98169]
[1744631014422,0.7509,1671.9,1671.7,11.96348]
[1744631014805,0.7509,1671.9,1671.6,5.98228]
[1744631015020,0.7509,1671.9,1671.6,5.98217]
[1744631015233,6.73212,1671.9,1671.6,7.491039]
[1744631015539,6.73212,1671.9,1671.5,7.179106]
[1744631015540,6.73226,1671.9,1671.5,7.179106]
[1744631015720,6.04136062,1671.8,1671.5,11.96506]
[1744631016148,6.04136062,1671.8,1671.4,5.98292]
[1744631016318,0.7848,1671.7,1671.3,5.98327]
[1744631016517,5.98245,1671.6,1671.3,5.98327]
[1744631016722,0.05971062,1671.6,1671.4,5.98287]
[1744631016918,0.7848,1671.7,1671.5,5.98254]
[1744631017760,0.7848,1671.7,1671.4,5.98295]
[1744631017963,5.98279,1671.5,1671.1,5.98405]
[1744631018147,6.87606062,1671.4,1671.1,5.98393]
[1744631018351,12.85930062,1671.4,1671.1,5.98393]
[1744631018548,11.96721,1671.3,1670.9,12.75431]
[1744631019069,5.98372,1671.2,1670.9,5.98464]
[1744631019434,5.98372,1671.2,1670.9,11.96932]
[1744631019834,5.98372,1671.2,1670.9,5.98464]
[1744631020035,0.8332,1671.4,1671.2,5.98352]
[1744631020563,0.8332,1671.4,1671.3,5.98336]
[1744631020936,0.8332,1671.4,1671.1,11.96797]
[1744631021350,0.8332,1671.4,1671.1,5.98397]
[1744631021536,0.8332,1671.4,1671.2,5.98368]
[1744631021862,0.8332,1671.4,1671.2,5.98357]
[1744631022042,0.89291062,1671.4,1671.1,11.96802]
[1744631022230,0.8332,1671.4,1671.1,11.96802]
[1744631022665,0.8332,1671.4,1671.1,11.96794]
[1744631022847,0.89291062,1671.4,1671.1,11.96785]
[1744631023053,0.8332,1671.4,1671.1,11.96785]
[1744631023442,6.81626,1671.4,1671.1,5.98392]
[1744631023654,0.8332,1671.4,1671.2,5.9837]
[1744631024066,0.8332,1671.4,1671.2,11.9673]
[1744631024361,0.8332,1671.4,1671.1,11.9679]
[1744631024580,6.8162,1671.4,1671.1,11.96791]
[1744631024785,6.8162,1671.4,1671.1,5.98393]
[1744631024938,6.8162,1671.4,1671.1,11.96786]
[1744631025139,6.8162,1671.4,1671.1,5.98393]
[1744631025370,0.8332,1671.4,1671.2,5.98362]
[1744631025569,0.89291062,1671.4,1671.2,5.98362]
[1744631026085,0.89291062,1671.4,1671.2,11.96724]
[1744631026301,0.7993,1671.6,1671.4,5.98279]
[1744631026584,3.05971062,1671.7,1671.5,5.98254]
[1744631026958,9.04166062,1671.7,1671.4,5.98279]
[1744631027641,3.05971062,1671.7,1671.5,5.98264]
[1744631028635,3.05971062,1671.7,1671.4,11.96569]
[1744631029063,3.05971062,1671.7,1671.4,5.98279]
[1744631029064,9.04167062,1671.7,1671.4,5.98279]
[1744631029265,9.04167062,1671.7,1671.4,11.96569]
[1744631029576,6.04167062,1671.7,1671.4,13.242599]
[1744631030380,6.04167062,1671.7,1671.4,7.259699]
[1744631030667,6.76393,1671.6,1671.3,5.98319]
[1744631030873,0.05971062,1671.5,1671.3,11.96638]
[1744631032078,7.22085318,1671.8,1671.5,5.98265]
[1744631032373,6.82289062,1671.8,1671.5,5.98265]
[1744631032547,0.84121062,1671.8,1671.3,6.75063]
[1744631032748,0.7815,1671.8,1671.7,5.98193]
[1744631033178,0.05971062,1671.9,1671.7,5.98191]
[1744631033340,0.05971062,1671.9,1671.6,6.79239]
[1744631033545,6.04095062,1671.9,1671.6,6.79239]
[1744631033772,6.04095062,1671.9,1671.6,12.77458]
[1744631034456,0.05971062,1671.9,1671.7,5.98191]
[1744631035362,0.05971062,1671.9,1671.7,5.98183]
[1744631035564,3.0,1672.0,1671.8,5.98145]
[1744631035565,3.05971062,1672.0,1671.8,5.98145]
[1744631035765,0.88051062,1672.1,1671.9,5.98121]
[1744631035950,0.05971062,1672.1,1671.9,5.9811]
[1744631036186,0.05971062,1672.1,1671.9,11.96222]
[1744631036564,0.05971062,1672.2,1672.0,11.96172]
[1744631036853,0.84001062,1672.3,1672.1,5.98038]
[1744631037179,0.84001062,1672.3,1672.2,5.98014]
[1744631037180,0.7803,1672.3,1672.2,5.98014]
[1744631037382,0.7803,1672.3,1672.1,11.96074]
[1744631037676,0.7803,1672.3,1672.2,5.98014]
[1744631037881,3.05971062,1672.4,1672.2,5.98014]
[1744631038479,0.05971062,1672.4,1672.3,5.97978]
[1744631038784,0.8285,1672.5,1672.4,5.97943]
[1744631039083,5.97885,1672.6,1672.3,5.97951]
[1744631039279,12.01744062,1672.6,1672.3,5.97951]
[1744631039483,0.05971062,1672.6,1672.3,5.97951]
[1744631039682,12.01749062,1672.6,1672.3,5.97951]
[1744631040178,12.01750062,1672.6,1672.3,5.97951]
[1744631040352,12.01743062,1672.6,1672.3,5.97951]
[1744631040555,0.05971062,1672.6,1672.4,5.97943]
[1744631040766,0.05971062,1672.6,1672.3,5.97972]
[1744631040965,6.03853062,1672.6,1672.3,5.97972]
[1744631041369,0.05971062,1672.6,1672.3,11.95937]
[1744631041683,0.05971062,1672.6,1672.2,13.15617]
[1744631041981,5.97932,1672.5,1672.2,5.98001]
[1744631042173,0.05971062,1672.5,1672.2,5.98001]
[1744631042552,6.03887062,1672.5,1672.2,5.98007]
[1744631042748,12.01809062,1672.5,1672.2,5.98007]
[1744631043290,6.03887062,1672.5,1672.2,5.98007]
[1744631043457,7.24063168,1672.5,1672.2,5.98007]
[1744631043657,13.21985168,1672.5,1672.2,5.98007]
[1744631043988,13.16014106,1672.5,1672.1,6.7567]
[1744631044184,5.97872,1672.6,1672.2,11.96017]
[1744631044388,7.31592478,1672.7,1672.3,5.97965]
[1744631044590,3.0,1672.6,1672.3,5.97965]
[1744631044888,13.23487416,1672.7,1672.3,11.95933]
[1744631045090,6.79682,1672.7,1672.4,5.97935]
[1744631045383,2.15550262,1672.7,1672.1,6.7567]
[1744631045592,5.97941,1672.5,1672.1,12.7371]
[1744631045888,0.05971062,1672.4,1672.1,12.7371]
[1744631046193,6.03914062,1672.4,1672.1,6.7567]
[1744631046385,6.76003,1672.3,1672.0,5.9808]
[1744631046586,12.74006,1672.3,1672.0,1.277062]
[1744631046886,5.9805,1672.1,1671.8,5.98153]
[1744631047088,5.98086,1672.0,1671.7,6.73837]
[1744631047469,12.02095062,1672.1,1671.7,12.72018]
[1744631049179,5.98099,1672.0,1671.7,0.7566]
[1744631049484,5.98099,1672.0,1671.2,2.016624]
[1744631049485,5.983,1671.5,1671.2,2.016624]
[1744631049686,5.983,1671.5,1670.8,14.95138271]
[1744631049687,6.04304062,1671.4,1671.0,6.80427]
[1744631049866,5.98337,1671.3,1671.0,6.80417]
[1744631050396,6.04304062,1671.4,1671.0,6.86411762]
[1744631050599,0.05971062,1671.4,1671.1,11.96783]
[1744631050785,0.05971062,1671.4,1671.1,13.246603]
[1744631050980,0.05971062,1671.4,1671.1,7.262653]
[1744631052291,6.04275062,1671.4,1671.1,7.262653]
[1744631052487,6.04275062,1671.4,1671.1,1.278773]
[1744631052693,5.98337,1671.3,1671.1,1.278773]
[1744631052889,5.98337,1671.3,1671.0,12.7885]
[1744631053092,6.04275062,1671.4,1671.0,6.80419]
[1744631053288,0.05971062,1671.5,1671.0,0.8199]
[1744631053494,5.98347,1671.3,1671.0,6.80426]
[1744631054304,5.98347,1671.3,1671.0,12.78854]
[1744631054603,5.98324,1671.4,1671.0,12.78854]
[1744631054604,5.98324,1671.4,1671.1,5.98403]
[1744631054791,11.96642,1671.4,1671.1,5.98403]
[1744631055001,5.98318,1671.4,1671.1,5.98403]
[1744631055187,11.96648,1671.4,1671.0,14.067344]
[1744631055672,11.96648,1671.4,1671.0,8.083034]
[1744631055872,5.98318,1671.4,1671.1,5.98407]
[1744631056911,11.96635,1671.4,1671.1,5.98407]
[1744631057093,5.98317,1671.4,1671.0,14.067304]
[1744631057295,5.98317,1671.4,1671.1,7.3907904]
[1744631057478,11.96636,1671.4,1671.1,7.3907904]
[1744631058313,11.96636,1671.4,1671.1,1.4067304]
[1744631059512,5.98317,1671.4,1671.1,1.4067304]
[1744631059683,5.98317,1671.4,1671.1,13.3747004]
[1744631060006,5.98317,1671.4,1671.1,7.3906904]
[1744631060007,5.98302,1671.4,1671.1,7.3906904]
[1744631060214,5.98302,1671.4,1671.1,13.3746604]
[1744631060408,5.98302,1671.4,1671.1,7.3906904]
[1744631060707,8.98205,1671.7,1671.3,6.81378]
[1744631060918,3.05971062,1671.7,1671.5,5.98257]
[1744631061074,3.0,1671.7,1671.5,5.98257]
[1744631061504,0.81221062,1671.8,1671.5,5.98265]
[1744631061721,3.81221062,1671.8,1671.5,11.9653]
[1744631061889,3.05971062,1671.8,1671.5,5.98265]
[1744631062080,3.05971062,1671.8,1671.5,7.179087]
[1744631062280,3.0,1671.8,1671.5,13.161607]
[1744631062707,3.0,1671.8,1671.6,5.98226]
[1744631063086,6.48811741,1671.9,1671.6,5.98226]
[1744631063087,0.05971062,1671.9,1671.6,5.98218]
[1744631063283,9.04092062,1671.9,1671.6,6.7000537]
[1744631063722,0.05971062,1671.9,1671.6,0.7178737]
[1744631063898,12.71845,1672.0,1671.6,5.98224]
[1744631064092,5.98125,1671.9,1671.6,11.96439]
[1744631064292,0.05971062,1671.8,1671.3,0.8305]
[1744631064497,5.98168,1671.8,1671.5,5.98251]
[1744631064811,6.04102062,1671.9,1671.3,0.8305]
[1744631064812,0.05971062,1671.9,1671.6,11.96436]
[1744631065015,0.81621062,1672.0,1671.7,6.75874]
[1744631065195,8.98059,1672.1,1671.8,5.98145]
[1744631065380,9.04030062,1672.1,1671.8,11.96288]
[1744631065714,9.04030062,1672.1,1671.8,5.98156]
[1744631065897,15.02111062,1672.1,1671.7,12.74065]
[1744631066102,8.98059,1672.1,1671.8,5.98154]
[1744631066301,6.04030062,1672.1,1671.8,5.98154]
[1744631066681,12.02103062,1672.1,1671.8,5.98154]
[1744631067202,12.02096062,1672.1,1671.8,5.98154]
[1744631067716,12.02109062,1672.1,1671.8,5.98145]
[1744631068085,6.04030062,1672.1,1671.8,5.98143]
[1744631068320,5.98059,1672.1,1671.8,5.98143]
[1744631068623,12.64181006,1672.1,1671.8,5.98156]
[1744631068781,6.66109006,1672.1,1671.8,5.98156]
[1744631068982,12.64177006,1672.1,1671.8,5.98156]
[1744631069213,6.66109006,1672.1,1671.8,5.98145]
[1744631069514,12.64177006,1672.1,1671.8,5.98145]
[1744631069719,12.64177006,1672.1,1671.7,12.74082]
[1744631070817,5.98087,1672.0,1671.7,6.7588]
[1744631071016,0.05971062,1671.9,1671.6,11.96446]
[1744631071414,13.22626601,1672.0,1671.6,11.96446]
[1744631071714,7.24506601,1672.0,1671.7,5.98186]
[1744631072085,13.22613601,1672.0,1671.7,5.98186]
[1744631072287,7.24506601,1672.0,1671.7,5.98186]
[1744631072487,13.28584663,1672.0,1671.7,5.98186]
[1744631072707,13.22613601,1672.0,1671.7,5.98186]
[1744631073016,5.98123,1671.9,1671.6,5.98223]
[1744631073221,5.98123,1671.9,1671.6,13.54112327]
[1744631073585,6.04059062,1672.0,1671.6,7.55889327]
[1744631073804,12.02167062,1672.0,1671.7,5.98192]
[1744631074005,6.04059062,1672.0,1671.7,5.98192]
[1744631074198,6.04059062,1672.0,1671.7,11.96373]
[1744631074418,5.98088,1672.0,1671.7,5.98181]
[1744631074801,11.9619,1672.0,1671.7,5.98181]
[1744631075005,11.96202,1672.0,1671.7,5.98181]
[1744631075216,11.9619,1672.0,1671.7,5.98181]
[1744631075594,10.9619,1672.0,1671.7,5.98181]
[1744631076601,4.98088,1672.0,1671.7,5.98181]
[1744631076819,10.96187,1672.0,1671.7,5.98181]
[1744631077013,10.96187,1672.0,1671.6,13.54112327]
[1744631077216,5.98124,1671.9,1671.6,13.54110327]
[1744631077519,10.96193,1672.0,1671.7,7.33603033]
[1744631078024,5.98122,1671.9,1671.6,5.98216]
[1744631078194,5.98122,1671.9,1671.6,11.96433]
[1744631078597,5.98122,1671.9,1671.6,11.96435]
[1744631078827,5.98122,1671.9,1671.6,11.96434]
[1744631079523,6.78822,1671.9,1671.5,6.80333]
[1744631079706,6.78822,1671.9,1671.5,6.662863]
[1744631079707,5.98167,1671.8,1671.5,6.662863]
[1744631080023,5.98167,1671.8,1671.5,12.645403]
[1744631080535,6.04138062,1671.8,1671.5,12.645403]
[1744631080825,0.807,1671.9,1671.7,5.98191]
[1744631081024,6.82434062,1672.1,1671.8,11.96314]
[1744631081250,12.80511062,1672.1,1671.8,5.98157]
[1744631081396,12.7454,1672.1,1671.8,5.98157]
[1744631081722,0.05971062,1672.0,1671.8,5.98157]
[1744631081921,0.05971062,1672.0,1671.8,7.177914]
[1744631082316,6.04059062,1672.0,1671.8,1.196344]
[1744631082493,6.04059062,1672.0,1671.7,5.98187]
[1744631082698,6.04059062,1672.0,1671.7,11.96371]
[1744631083228,5.98124,1671.9,1671.6,12.74206]
[1744631083595,5.98124,1671.9,1671.6,12.74205]
[1744631083798,6.04059062,1672.0,1671.7,5.98189]
[1744631083993,5.98124,1671.9,1671.6,5.98221]
[1744631084307,0.86901062,1671.8,1671.6,5.98221]
[1744631084521,0.86901062,1671.8,1671.6,7.2467193]
[1744631084726,0.8093,1671.8,1671.6,7.2466893]
[1744631084927,0.05971062,1671.9,1671.8,5.98157]
[1744631085135,0.05971062,1672.0,1671.8,11.96314]
[1744631085313,0.05971062,1672.0,1671.9,1.196314]
[1744631085512,0.05971062,1672.0,1671.8,5.98157]
[1744631085836,0.05971062,1672.0,1671.8,5.98147]
[1744631088538,0.05971062,1672.0,1671.7,12.7347]
[1744631089240,0.05971062,1672.0,1671.8,5.98156]
[1744631089610,0.05971062,1672.0,1671.8,5.9814]
[1744631089916,0.05971062,1672.0,1671.9,0.59814]
[1744631091037,6.04057062,1672.0,1671.9,0.59814]
[1744631091240,6.04057062,1672.0,1671.7,11.96367]
[1744631093347,0.05971062,1672.0,1671.8,5.98157]
[1744631093846,0.05971062,1672.0,1671.7,5.98182]
[1744631094030,0.8029,1671.8,1671.6,7.2466293]
[1744631094230,6.84426062,1671.8,1671.6,1.2645093]
[1744631094545,0.86261062,1671.8,1671.6,1.2645093]
[1744631095270,0.86261062,1671.8,1671.6,7.2467293]
[1744631095419,0.7937,1672.0,1671.7,0.72467293]
[1744631095618,6.04108062,1671.9,1671.6,5.98219]
[1744631095835,12.02262062,1671.9,1671.6,5.98219]
[1744631096030,6.04108062,1671.9,1671.6,11.96436]
[1744631096754,0.05971062,1671.9,1671.7,5.98184]
[1744631098440,6.04093062,1671.9,1671.6,11.96436]
[1744631098615,6.04093062,1671.9,1671.6,13.160796]
[1744631099750,6.04093062,1671.9,1671.6,7.178606]
[1744631099930,6.04093062,1671.9,1671.6,5.98217]
[1744631100131,5.98176,1671.8,1671.5,5.98254]
[1744631100331,12.02236062,1671.9,1671.5,5.98254]
[1744631100553,12.02236062,1671.9,1671.6,5.98228]
[1744631100725,0.05971062,1671.9,1671.4,9.75701271]
[1744631101049,6.04096062,1671.9,1671.6,5.98218]
[1744631101266,12.02236062,1671.9,1671.6,5.98218]
[1744631101480,5.98159,1671.8,1671.5,12.94084127]
[1744631101751,6.04096062,1671.9,1671.6,5.98228]
[1744631101935,0.05971062,1671.9,1671.7,5.98193]
[1744631102324,0.05971062,1671.9,1671.7,11.96375]
[1744631102970,0.05971062,1671.9,1671.7,11.96366]
[1744631103551,0.05971062,1671.9,1671.7,5.98181]
[1744631103765,0.85341062,1672.0,1671.8,5.98139]
[1744631104253,6.83428062,1672.0,1671.7,13.79895746]
[1744631104550,0.8153,1671.7,1671.0,0.7677]
[1744631104715,6.04234062,1671.6,1671.2,11.9672]
[1744631105055,5.98158,1671.8,1671.5,5.98265]
[1744631105056,0.8153,1671.8,1671.5,5.98265]
[1744631105258,0.05971062,1671.7,1671.5,1.196543]
[1744631105433,5.98239,1671.6,1671.3,6.75093]
[1744631106941,0.05971062,1671.7,1671.4,5.98266]
[1744631107143,6.04173062,1671.7,1671.4,5.98266]
[1744631107953,6.04173062,1671.7,1671.4,11.96555]
[1744631108146,6.04173062,1671.7,1671.4,5.98266]
[1744631108352,0.05971062,1671.7,1671.5,5.98254]
[1744631109047,0.87501062,1671.8,1671.5,5.98254]
[1744631109559,6.85669062,1671.8,1671.5,5.98254]
[1744631109764,12.83850062,1671.8,1671.4,13.239208]
[1744631110056,12.77879,1671.8,1671.4,13.239208]
[1744631110260,12.77887,1671.8,1671.4,13.239188]
[1744631111460,6.79698,1671.8,1671.5,11.96507]
[1744631111661,6.85669062,1671.8,1671.5,11.96507]
[1744631112242,6.85669062,1671.8,1671.5,13.2889138]
[1744631112441,6.85669062,1671.8,1671.5,7.3063738]
[1744631113651,6.85669062,1671.8,1671.5,13.2889138]
[1744631114964,6.85669062,1671.8,1671.5,7.3063738]
[1744631115162,6.85669062,1671.8,1671.5,5.98253]
[1744631115663,6.85669062,1671.8,1671.5,11.96505]
[1744631115863,0.87501062,1671.8,1671.6,5.98228]
[1744631116042,6.85660062,1671.8,1671.5,11.96504]
[1744631116830,6.85660062,1671.8,1671.5,5.98252]
[1744631117163,6.85660062,1671.8,1671.5,11.96505]
[1744631118780,0.87501062,1671.8,1671.7,5.98193]
[1744631118967,0.05971062,1671.9,1671.7,5.98182]
[1744631119153,9.04031062,1672.1,1671.8,5.98146]
[1744631119357,15.02099062,1672.1,1671.8,5.98146]
[1744631119551,14.96128,1672.1,1671.8,5.98146]
[1744631119862,0.05971062,1672.0,1671.8,5.98146]
[1744631120067,0.05971062,1672.0,1671.8,7.177798]
[1744631120232,6.04064062,1672.0,1671.8,1.196338]
[1744631121463,0.05971062,1672.0,1671.8,7.177878]
[1744631121664,0.05971062,1672.0,1671.8,5.98147]
[1744631121968,0.05971062,1672.0,1671.8,5.98146]
[1744631122851,0.05971062,1672.0,1671.8,5.98145]
[1744631123150,0.05971062,1672.0,1671.8,11.9629]
[1744631123660,0.05971062,1672.0,1671.8,11.96292]
[1744631123859,0.05971062,1672.0,1671.8,13.159212]
[1744631124374,0.05971062,1672.0,1671.8,7.177742]
[1744631124550,0.05971062,1672.0,1671.8,13.159212]
[1744631124869,0.05971062,1672.0,1671.8,7.177742]
[1744631125569,0.05971062,1672.0,1671.8,7.177732]
[1744631126942,0.05971062,1672.0,1671.8,5.98144]
[1744631127282,0.05971062,1672.0,1671.8,11.9629]
[1744631127485,0.05971062,1672.0,1671.8,11.96289]
[1744631127669,0.05971062,1672.0,1671.8,5.98144]
[1744631132994,0.05971062,1672.0,1671.8,11.9629]
[1744631133308,0.05971062,1672.0,1671.8,5.98144]
[1744631133469,0.05971062,1672.0,1671.8,11.9629]
[1744631133868,0.05971062,1672.0,1671.8,5.98144]
[1744631138002,0.05971062,1672.0,1671.8,11.96289]
[1744631138309,0.784,1672.2,1672.0,5.98082]
[1744631138513,0.84371062,1672.2,1672.0,5.98082]
[1744631138688,0.05971062,1672.4,1671.9,0.8111]
[1744631138892,0.05971062,1672.4,1672.2,5.98007]
[1744631139270,0.05971062,1672.4,1672.2,5.98003]
[1744631139471,0.05971062,1672.4,1672.2,11.96006]
[1744631139671,0.05971062,1672.4,1672.2,5.98003]
[1744631139980,0.05971062,1672.5,1672.3,5.97963]
[1744631140191,0.05971062,1672.5,1672.3,11.95925]